{"text_format":"1","workbook":"xlsx","n_sheets":1,"sheets":["Sheet1"],"not_rendered":{"charts":0,"images":0,"macros":1,"external_links":0,"defined_names":0,"comments":0,"pivot_tables":0},"unopened":[],"bounds":{"document_bytes":16777216,"sheet_cells":100000,"rows_first":2000,"rows_last":500,"rows_between":2000,"halvings":0,"cell_chars":16384,"cell_head_chars":4096},"cells_cut":0,"cells_raw":0,"read":"whole","date_system":"1900"}

{"sheet":"Sheet1","index":0,"n_rows":2500,"n_cols":22,"rows_kept":2500,"cut":false,"hidden":false,"merged":[[6,12,6,13],[6,10,6,11],[8,9,11,16],[6,2,6,3],[2,6,2,9],[2,11,2,13]]}
["الاحد والثلاثاء","الاحد","أيام الدوام","الاحد والثلاثاء",null,null,null,null,null,null,null,null,null,null,null,null,null,null,null,null,null,{"$f":"$M$4-$I$4+9","v":104}]
["الاثنين والاربعاء","الاثنين"]
["اربعة ايام","الثلاثاء","تاريخ اليوم","الخميس",null,null,"بداية صفوف الخطة",null,null,null,null,"نهاية صفوف الخطة"]
["خمسة ايام","الاربعاء",null,"2020-06-29",null,null,null,null,5,null,4,null,100]
["ستة ايام","الخميس"]
[null,"الجمعة"]
[null,"السبت","التاريخ",null,null,null,null,null,null,null,"عدم تجاوز هذا التاريخ ",null,"2020-07-15"]
[null,null,"اليوم","التاريخ"]
[5,1,{"$f":"IF(D9<>\"\",D9,\"\")","v":"2020-06-29"},"2020-06-29",null,null,null,null,null,"\nوأريد إضافة شرط عدم تجاوز التاريخ المحدد في الخلية (m7)"]
[6,2,{"$f":"IF(D10<>\"\",D10,\"\")","v":"2020-07-01"},"2020-07-01"]
[7,3,"2020-07-06","2020-07-06"]
[8,4,"2020-07-08","2020-07-08"]
[9,5,"2020-07-13","2020-07-13"]
[10,6,""]
[11,7,""]
[12,8,""]
[13,9,""]
[14,10,""]
[15,11,""]
[16,12,""]
[17,13,""]
[18,14,""]
[19,15,""]
[20,16,""]
[21,17,""]
[22,18,""]
[23,19,""]
[24,20,""]
[25,21,""]
[26,22,""]
[27,23,""]
[28,24,""]
[29,25,""]
[30,26,""]
[31,27,""]
[32,28,""]
[33,29,""]
[34,30,""]
[35,31,""]
[36,32,""]
[37,33,""]
[38,34,""]
[39,35,""]
[40,36,""]
[41,37,""]
[42,38,""]
[43,39,""]
[44,40,""]
[45,41,""]
[46,42,""]
[47,43,""]
[48,44,""]
[49,45,""]
[50,46,""]
[51,47,""]
[52,48,""]
[53,49,""]
[54,50,""]
[55,51,""]
[56,52,""]
[57,53,""]
[58,54,""]
[59,55,""]
[60,56,""]
[61,57,""]
[62,58,""]
[63,59,""]
[64,60,""]
[65,61,""]
[66,62,""]
[67,63,""]
[68,64,""]
[69,65,""]
[70,66,{"$f":"IF(D74<>\"\",D74,\"\")","v":""}]
[71,67,""]
[72,68,""]
[73,69,""]
[74,70,""]
[75,71,""]
[76,72,""]
[77,73,""]
[78,74,""]
[79,75,""]
[80,76,""]
[81,77,""]
[82,78,""]
[83,79,""]
[84,80,""]
[85,81,""]
[86,82,""]
[87,83,""]
[88,84,""]
[89,85,""]
[90,86,""]
[91,87,""]
[92,88,""]
[93,89,""]
[94,90,""]
[95,91,""]
[96,92,""]
[97,93,""]
[98,94,""]
[99,95,""]
[100,96,""]
[null,null,""]
[null,null,""]
[null,null,""]
[null,null,""]
[null,null,""]
[null,null,""]
[null,null,""]
[null,null,""]
[null,null,""]
[null,null,""]
[null,null,""]
[null,null,""]
[null,null,""]
[null,null,""]
[null,null,""]
[null,null,""]
[null,null,""]
[null,null,""]
[null,null,""]
[null,null,""]
[null,null,""]
[null,null,""]
[null,null,""]
[null,null,""]
[null,null,""]
[null,null,""]
[null,null,""]
[null,null,""]
[null,null,""]
[null,null,""]
[null,null,""]
[null,null,""]
[null,null,""]
[null,null,{"$f":"IF(D138<>\"\",D138,\"\")","v":""}]
[null,null,""]
[null,null,""]
[null,null,""]
[null,null,""]
[null,null,""]
[null,null,""]
[null,null,""]
[null,null,""]
[null,null,""]
[null,null,""]
[null,null,""]
[null,null,""]
[null,null,""]
[null,null,""]
[null,null,""]
[null,null,""]
[null,null,""]
[null,null,""]
[null,null,""]
[null,null,""]
[null,null,""]
[null,null,""]
[null,null,""]
[null,null,""]
[null,null,""]
[null,null,""]
[null,null,""]
[null,null,""]
[null,null,""]
[null,null,""]
[null,null,""]
[null,null,""]
[null,null,""]
[null,null,""]
[null,null,""]
[null,null,""]
[null,null,""]
[null,null,""]
[null,null,""]
[null,null,""]
[null,null,""]
[null,null,""]
[null,null,""]
[null,null,""]
[null,null,""]
[null,null,""]
[null,null,""]
[null,null,""]
[null,null,""]
[null,null,""]
[null,null,""]
[null,null,""]
[null,null,""]
[null,null,""]
[null,null,""]
[null,null,""]
[null,null,""]
[null,null,""]
[null,null,""]
[null,null,""]
[null,null,""]
[null,null,""]
[null,null,""]
[null,null,""]
[null,null,""]
[null,null,""]
[null,null,""]
[null,null,""]
[null,null,""]
[null,null,""]
[null,null,""]
[null,null,""]
[null,null,""]
[null,null,""]
[null,null,""]
[null,null,""]
[null,null,""]
[null,null,""]
[null,null,""]
[null,null,""]
[null,null,""]
[null,null,""]
[null,null,""]
[null,null,""]
[null,null,""]
[null,null,""]
[null,null,""]
[null,null,""]
[null,null,""]
[null,null,""]
[null,null,""]
[null,null,""]
[null,null,""]
[null,null,""]
[null,null,""]
[null,null,""]
[null,null,""]
[null,null,""]
[null,null,""]
[null,null,""]
[null,null,""]
[null,null,""]
[null,null,""]
[null,null,""]
[null,null,""]
[null,null,""]
[null,null,""]
[null,null,""]
[null,null,""]
[null,null,""]
[null,null,""]
[null,null,""]
[null,null,""]
[null,null,""]
[null,null,""]
[null,null,""]
[null,null,""]
[null,null,""]
[null,null,""]
[null,null,""]
[null,null,""]
[null,null,""]
[null,null,""]
[null,null,""]
[null,null,""]
[null,null,""]
[null,null,""]
[null,null,""]
[null,null,""]
[null,null,""]
[null,null,""]
[null,null,""]
[null,null,""]
[null,null,""]
[null,null,""]
[null,null,""]
[null,null,""]
[null,null,""]
[null,null,""]
[null,null,""]
[null,null,""]
[null,null,""]
[null,null,""]
[null,null,""]
[null,null,""]
[null,null,""]
[null,null,""]
[null,null,""]
[null,null,""]
[null,null,""]
[null,null,""]
[null,null,""]
[null,null,""]
[null,null,""]
[null,null,""]
[null,null,""]
[null,null,""]
[null,null,""]
[null,null,""]
[null,null,""]
[null,null,""]
[null,null,""]
[null,null,""]
[null,null,""]
[null,null,""]
[null,null,""]
[null,null,""]
[null,null,""]
[null,null,""]
[null,null,""]
[null,null,""]
[null,null,""]
[null,null,""]
[null,null,""]
[null,null,""]
[null,null,""]
[null,null,""]
[null,null,""]
[null,null,""]
[null,null,""]
[null,null,""]
[null,null,""]
[null,null,""]
[null,null,""]
[null,null,""]
[null,null,""]
[null,null,""]
[null,null,""]
[null,null,""]
[null,null,""]
[null,null,""]
[null,null,""]
[null,null,""]
[null,null,""]
[null,null,""]
[null,null,""]
[null,null,""]
[null,null,""]
[null,null,""]
[null,null,""]
[null,null,""]
[null,null,""]
[null,null,""]
[null,null,""]
[null,null,""]
[null,null,""]
[null,null,""]
[null,null,""]
[null,null,""]
[null,null,""]
[null,null,""]
[null,null,""]
[null,null,""]
[null,null,""]
[null,null,""]
[null,null,""]
[null,null,""]
[null,null,""]
[null,null,""]
[null,null,""]
[null,null,""]
[null,null,""]
[null,null,""]
[null,null,""]
[null,null,""]
[null,null,""]
[null,null,""]
[null,null,""]
[null,null,""]
[null,null,""]
[null,null,""]
[null,null,""]
[null,null,""]
[null,null,""]
[null,null,""]
[null,null,""]
[null,null,""]
[null,null,""]
[null,null,""]
[null,null,""]
[null,null,""]
[null,null,""]
[null,null,""]
[null,null,""]
[null,null,""]
[null,null,""]
[null,null,""]
[null,null,""]
[null,null,""]
[null,null,""]
[null,null,""]
[null,null,""]
[null,null,""]
[null,null,""]
[null,null,""]
[null,null,""]
[null,null,""]
[null,null,""]
[null,null,""]
[null,null,""]
[null,null,""]
[null,null,""]
[null,null,""]
[null,null,""]
[null,null,""]
[null,null,""]
[null,null,""]
[null,null,""]
[null,null,""]
[null,null,""]
[null,null,""]
[null,null,""]
[null,null,""]
[null,null,""]
[null,null,""]
[null,null,""]
[null,null,""]
[null,null,""]
[null,null,""]
[null,null,""]
[null,null,""]
[null,null,""]
[null,null,""]
[null,null,""]
[null,null,""]
[null,null,""]
[null,null,""]
[null,null,""]
[null,null,""]
[null,null,""]
[null,null,""]
[null,null,""]
[null,null,""]
[null,null,""]
[null,null,""]
[null,null,""]
[null,null,""]
[null,null,""]
[null,null,""]
[null,null,""]
[null,null,""]
[null,null,""]
[null,null,""]
[null,null,""]
[null,null,""]
[null,null,""]
[null,null,""]
[null,null,""]
[null,null,""]
[null,null,""]
[null,null,""]
[null,null,""]
[null,null,""]
[null,null,""]
[null,null,""]
[null,null,""]
[null,null,""]
[null,null,""]
[null,null,""]
[null,null,""]
[null,null,""]
[null,null,""]
[null,null,""]
[null,null,""]
[null,null,""]
[null,null,""]
[null,null,""]
[null,null,""]
[null,null,""]
[null,null,""]
[null,null,""]
[null,null,""]
[null,null,""]
[null,null,""]
[null,null,""]
[null,null,""]
[null,null,""]
[null,null,""]
[null,null,""]
[null,null,""]
[null,null,""]
[null,null,""]
[null,null,""]
[null,null,""]
[null,null,""]
[null,null,""]
[null,null,""]
[null,null,""]
[null,null,""]
[null,null,""]
[null,null,""]
[null,null,""]
[null,null,""]
[null,null,""]
[null,null,""]
[null,null,""]
[null,null,""]
[null,null,""]
[null,null,""]
[null,null,""]
[null,null,""]
[null,null,""]
[null,null,""]
[null,null,""]
[null,null,""]
[null,null,""]
[null,null,""]
[null,null,""]
[null,null,""]
[null,null,""]
[null,null,""]
[null,null,""]
[null,null,""]
[null,null,""]
[null,null,""]
[null,null,""]
[null,null,""]
[null,null,""]
[null,null,""]
[null,null,""]
[null,null,""]
[null,null,""]
[null,null,""]
[null,null,""]
[null,null,""]
[null,null,""]
[null,null,""]
[null,null,""]
[null,null,""]
[null,null,""]
[null,null,""]
[null,null,""]
[null,null,""]
[null,null,""]
[null,null,""]
[null,null,""]
[null,null,""]
[null,null,""]
[null,null,""]
[null,null,""]
[null,null,""]
[null,null,""]
[null,null,""]
[null,null,""]
[null,null,""]
[null,null,""]
[null,null,""]
[null,null,""]
[null,null,""]
[null,null,""]
[null,null,""]
[null,null,""]
[null,null,""]
[null,null,""]
[null,null,""]
[null,null,""]
[null,null,""]
[null,null,""]
[null,null,""]
[null,null,""]
[null,null,""]
[null,null,""]
[null,null,""]
[null,null,""]
[null,null,""]
[null,null,""]
[null,null,""]
[null,null,""]
[null,null,""]
[null,null,""]
[null,null,""]
[null,null,""]
[null,null,""]
[null,null,""]
[null,null,""]
[null,null,""]
[null,null,""]
[null,null,""]
[null,null,""]
[null,null,""]
[null,null,""]
[null,null,""]
[null,null,""]
[null,null,""]
[null,null,""]
[null,null,""]
[null,null,""]
[null,null,""]
[null,null,""]
[null,null,""]
[null,null,""]
[null,null,""]
[null,null,""]
[null,null,""]
[null,null,""]
[null,null,""]
[null,null,""]
[null,null,""]
[null,null,""]
[null,null,""]
[null,null,""]
[null,null,""]
[null,null,""]
[null,null,""]
[null,null,""]
[null,null,""]
[null,null,""]
[null,null,""]
[null,null,""]
[null,null,""]
[null,null,""]
[null,null,""]
[null,null,""]
[null,null,""]
[null,null,""]
[null,null,""]
[null,null,""]
[null,null,""]
[null,null,""]
[null,null,""]
[null,null,""]
[null,null,""]
[null,null,""]
[null,null,""]
[null,null,""]
[null,null,""]
[null,null,""]
[null,null,""]
[null,null,""]
[null,null,""]
[null,null,""]
[null,null,""]
[null,null,""]
[null,null,""]
[null,null,""]
[null,null,""]
[null,null,""]
[null,null,""]
[null,null,""]
[null,null,""]
[null,null,""]
[null,null,""]
[null,null,""]
[null,null,""]
[null,null,""]
[null,null,""]
[null,null,""]
[null,null,""]
[null,null,""]
[null,null,""]
[null,null,""]
[null,null,""]
[null,null,""]
[null,null,""]
[null,null,""]
[null,null,""]
[null,null,""]
[null,null,""]
[null,null,""]
[null,null,""]
[null,null,""]
[null,null,""]
[null,null,""]
[null,null,""]
[null,null,""]
[null,null,""]
[null,null,""]
[null,null,""]
[null,null,""]
[null,null,""]
[null,null,""]
[null,null,""]
[null,null,""]
[null,null,""]
[null,null,""]
[null,null,""]
[null,null,""]
[null,null,""]
[null,null,""]
[null,null,""]
[null,null,""]
[null,null,""]
[null,null,""]
[null,null,""]
[null,null,""]
[null,null,""]
[null,null,""]
[null,null,""]
[null,null,""]
[null,null,""]
[null,null,""]
[null,null,""]
[null,null,""]
[null,null,""]
[null,null,""]
[null,null,""]
[null,null,""]
[null,null,""]
[null,null,""]
[null,null,""]
[null,null,""]
[null,null,""]
[null,null,""]
[null,null,""]
[null,null,""]
[null,null,""]
[null,null,""]
[null,null,""]
[null,null,""]
[null,null,""]
[null,null,""]
[null,null,""]
[null,null,""]
[null,null,""]
[null,null,""]
[null,null,""]
[null,null,""]
[null,null,""]
[null,null,""]
[null,null,""]
[null,null,""]
[null,null,""]
[null,null,""]
[null,null,""]
[null,null,""]
[null,null,""]
[null,null,""]
[null,null,""]
[null,null,""]
[null,null,""]
[null,null,""]
[null,null,""]
[null,null,""]
[null,null,""]
[null,null,""]
[null,null,""]
[null,null,""]
[null,null,""]
[null,null,""]
[null,null,""]
[null,null,""]
[null,null,""]
[null,null,""]
[null,null,""]
[null,null,""]
[null,null,""]
[null,null,""]
[null,null,""]
[null,null,""]
[null,null,""]
[null,null,""]
[null,null,""]
[null,null,""]
[null,null,""]
[null,null,""]
[null,null,""]
[null,null,""]
[null,null,""]
[null,null,""]
[null,null,""]
[null,null,""]
[null,null,""]
[null,null,""]
[null,null,""]
[null,null,""]
[null,null,""]
[null,null,""]
[null,null,""]
[null,null,""]
[null,null,""]
[null,null,""]
[null,null,""]
[null,null,""]
[null,null,""]
[null,null,""]
[null,null,""]
[null,null,""]
[null,null,""]
[null,null,""]
[null,null,""]
[null,null,""]
[null,null,""]
[null,null,""]
[null,null,""]
[null,null,""]
[null,null,""]
[null,null,""]
[null,null,""]
[null,null,""]
[null,null,""]
[null,null,""]
[null,null,""]
[null,null,""]
[null,null,""]
[null,null,""]
[null,null,""]
[null,null,""]
[null,null,""]
[null,null,""]
[null,null,""]
[null,null,""]
[null,null,""]
[null,null,""]
[null,null,""]
[null,null,""]
[null,null,""]
[null,null,""]
[null,null,""]
[null,null,""]
[null,null,""]
[null,null,""]
[null,null,""]
[null,null,""]
[null,null,""]
[null,null,""]
[null,null,""]
[null,null,""]
[null,null,""]
[null,null,""]
[null,null,""]
[null,null,""]
[null,null,""]
[null,null,""]
[null,null,""]
[null,null,""]
[null,null,""]
[null,null,""]
[null,null,""]
[null,null,""]
[null,null,""]
[null,null,""]
[null,null,""]
[null,null,""]
[null,null,""]
[null,null,""]
[null,null,""]
[null,null,""]
[null,null,""]
[null,null,""]
[null,null,""]
[null,null,""]
[null,null,""]
[null,null,""]
[null,null,""]
[null,null,""]
[null,null,""]
[null,null,""]
[null,null,""]
[null,null,""]
[null,null,""]
[null,null,""]
[null,null,""]
[null,null,""]
[null,null,""]
[null,null,""]
[null,null,""]
[null,null,""]
[null,null,""]
[null,null,""]
[null,null,""]
[null,null,""]
[null,null,""]
[null,null,""]
[null,null,""]
[null,null,""]
[null,null,""]
[null,null,""]
[null,null,""]
[null,null,""]
[null,null,""]
[null,null,""]
[null,null,""]
[null,null,""]
[null,null,""]
[null,null,""]
[null,null,""]
[null,null,""]
[null,null,""]
[null,null,""]
[null,null,""]
[null,null,""]
[null,null,""]
[null,null,""]
[null,null,""]
[null,null,""]
[null,null,""]
[null,null,""]
[null,null,""]
[null,null,""]
[null,null,""]
[null,null,""]
[null,null,""]
[null,null,""]
[null,null,""]
[null,null,""]
[null,null,""]
[null,null,""]
[null,null,""]
[null,null,""]
[null,null,""]
[null,null,""]
[null,null,""]
[null,null,""]
[null,null,""]
[null,null,""]
[null,null,""]
[null,null,""]
[null,null,""]
[null,null,""]
[null,null,""]
[null,null,""]
[null,null,""]
[null,null,""]
[null,null,""]
[null,null,""]
[null,null,""]
[null,null,""]
[null,null,""]
[null,null,""]
[null,null,""]
[null,null,""]
[null,null,""]
[null,null,""]
[null,null,""]
[null,null,""]
[null,null,""]
[null,null,""]
[null,null,""]
[null,null,""]
[null,null,""]
[null,null,""]
[null,null,""]
[null,null,""]
[null,null,""]
[null,null,""]
[null,null,""]
[null,null,""]
[null,null,""]
[null,null,""]
[null,null,""]
[null,null,""]
[null,null,""]
[null,null,""]
[null,null,""]
[null,null,""]
[null,null,""]
[null,null,""]
[null,null,""]
[null,null,""]
[null,null,""]
[null,null,""]
[null,null,""]
[null,null,""]
[null,null,""]
[null,null,""]
[null,null,""]
[null,null,""]
[null,null,""]
[null,null,""]
[null,null,""]
[null,null,""]
[null,null,""]
[null,null,""]
[null,null,""]
[null,null,""]
[null,null,""]
[null,null,""]
[null,null,""]
[null,null,""]
[null,null,""]
[null,null,""]
[null,null,""]
[null,null,""]
[null,null,""]
[null,null,""]
[null,null,""]
[null,null,""]
[null,null,""]
[null,null,""]
[null,null,""]
[null,null,""]
[null,null,""]
[null,null,""]
[null,null,""]
[null,null,""]
[null,null,""]
[null,null,""]
[null,null,""]
[null,null,""]
[null,null,""]
[null,null,""]
[null,null,""]
[null,null,""]
[null,null,""]
[null,null,""]
[null,null,""]
[null,null,""]
[null,null,""]
[null,null,""]
[null,null,""]
[null,null,""]
[null,null,""]
[null,null,""]
[null,null,""]
[null,null,""]
[null,null,""]
[null,null,""]
[null,null,""]
[null,null,""]
[null,null,""]
[null,null,""]
[null,null,""]
[null,null,""]
[null,null,""]
[null,null,""]
[null,null,""]
[null,null,""]
[null,null,""]
[null,null,""]
[null,null,""]
[null,null,""]
[null,null,""]
[null,null,""]
[null,null,""]
[null,null,""]
[null,null,""]
[null,null,""]
[null,null,""]
[null,null,""]
[null,null,""]
[null,null,""]
[null,null,""]
[null,null,""]
[null,null,""]
[null,null,""]
[null,null,""]
[null,null,""]
[null,null,""]
[null,null,""]
[null,null,""]
[null,null,""]
[null,null,""]
[null,null,""]
[null,null,""]
[null,null,""]
[null,null,""]
[null,null,""]
[null,null,""]
[null,null,""]
[null,null,""]
[null,null,""]
[null,null,""]
[null,null,""]
[null,null,""]
[null,null,""]
[null,null,""]
[null,null,""]
[null,null,""]
[null,null,""]
[null,null,""]
[null,null,""]
[null,null,""]
[null,null,""]
[null,null,""]
[null,null,""]
[null,null,""]
[null,null,""]
[null,null,""]
[null,null,""]
[null,null,""]
[null,null,""]
[null,null,""]
[null,null,""]
[null,null,""]
[null,null,""]
[null,null,""]
[null,null,""]
[null,null,""]
[null,null,""]
[null,null,""]
[null,null,""]
[null,null,""]
[null,null,""]
[null,null,""]
[null,null,""]
[null,null,""]
[null,null,""]
[null,null,""]
[null,null,""]
[null,null,""]
[null,null,""]
[null,null,""]
[null,null,""]
[null,null,""]
[null,null,""]
[null,null,""]
[null,null,""]
[null,null,""]
[null,null,""]
[null,null,""]
[null,null,""]
[null,null,""]
[null,null,""]
[null,null,""]
[null,null,""]
[null,null,""]
[null,null,""]
[null,null,""]
[null,null,""]
[null,null,""]
[null,null,""]
[null,null,""]
[null,null,""]
[null,null,""]
[null,null,""]
[null,null,""]
[null,null,""]
[null,null,""]
[null,null,""]
[null,null,""]
[null,null,""]
[null,null,""]
[null,null,""]
[null,null,""]
[null,null,""]
[null,null,""]
[null,null,""]
[null,null,""]
[null,null,""]
[null,null,""]
[null,null,""]
[null,null,""]
[null,null,""]
[null,null,""]
[null,null,""]
[null,null,""]
[null,null,""]
[null,null,""]
[null,null,""]
[null,null,""]
[null,null,""]
[null,null,""]
[null,null,""]
[null,null,""]
[null,null,""]
[null,null,""]
[null,null,""]
[null,null,""]
[null,null,""]
[null,null,""]
[null,null,""]
[null,null,""]
[null,null,""]
[null,null,""]
[null,null,""]
[null,null,""]
[null,null,""]
[null,null,""]
[null,null,""]
[null,null,""]
[null,null,""]
[null,null,""]
[null,null,""]
[null,null,""]
[null,null,""]
[null,null,""]
[null,null,""]
[null,null,""]
[null,null,""]
[null,null,""]
[null,null,""]
[null,null,""]
[null,null,""]
[null,null,""]
[null,null,""]
[null,null,""]
[null,null,""]
[null,null,""]
[null,null,""]
[null,null,""]
[null,null,""]
[null,null,""]
[null,null,""]
[null,null,""]
[null,null,""]
[null,null,""]
[null,null,""]
[null,null,""]
[null,null,""]
[null,null,""]
[null,null,""]
[null,null,""]
[null,null,""]
[null,null,""]
[null,null,""]
[null,null,""]
[null,null,""]
[null,null,""]
[null,null,""]
[null,null,""]
[null,null,""]
[null,null,""]
[null,null,""]
[null,null,""]
[null,null,""]
[null,null,""]
[null,null,""]
[null,null,""]
[null,null,""]
[null,null,""]
[null,null,""]
[null,null,""]
[null,null,""]
[null,null,""]
[null,null,""]
[null,null,""]
[null,null,""]
[null,null,""]
[null,null,""]
[null,null,""]
[null,null,""]
[null,null,""]
[null,null,""]
[null,null,""]
[null,null,""]
[null,null,""]
[null,null,""]
[null,null,""]
[null,null,""]
[null,null,""]
[null,null,""]
[null,null,""]
[null,null,""]
[null,null,""]
[null,null,""]
[null,null,""]
[null,null,""]
[null,null,""]
[null,null,""]
[null,null,""]
[null,null,""]
[null,null,""]
[null,null,""]
[null,null,""]
[null,null,""]
[null,null,""]
[null,null,""]
[null,null,""]
[null,null,""]
[null,null,""]
[null,null,""]
[null,null,""]
[null,null,""]
[null,null,""]
[null,null,""]
[null,null,""]
[null,null,""]
[null,null,""]
[null,null,""]
[null,null,""]
[null,null,""]
[null,null,""]
[null,null,""]
[null,null,""]
[null,null,""]
[null,null,""]
[null,null,""]
[null,null,""]
[null,null,""]
[null,null,""]
[null,null,""]
[null,null,""]
[null,null,""]
[null,null,""]
[null,null,""]
[null,null,""]
[null,null,""]
[null,null,""]
[null,null,""]
[null,null,""]
[null,null,""]
[null,null,""]
[null,null,""]
[null,null,""]
[null,null,""]
[null,null,""]
[null,null,""]
[null,null,""]
[null,null,""]
[null,null,""]
[null,null,""]
[null,null,""]
[null,null,""]
[null,null,""]
[null,null,""]
[null,null,""]
[null,null,""]
[null,null,""]
[null,null,""]
[null,null,""]
[null,null,""]
[null,null,""]
[null,null,""]
[null,null,""]
[null,null,""]
[null,null,""]
[null,null,""]
[null,null,""]
[null,null,""]
[null,null,""]
[null,null,""]
[null,null,""]
[null,null,""]
[null,null,""]
[null,null,""]
[null,null,""]
[null,null,""]
[null,null,""]
[null,null,""]
[null,null,""]
[null,null,""]
[null,null,""]
[null,null,""]
[null,null,""]
[null,null,""]
[null,null,""]
[null,null,""]
[null,null,""]
[null,null,""]
[null,null,""]
[null,null,""]
[null,null,""]
[null,null,""]
[null,null,""]
[null,null,""]
[null,null,""]
[null,null,""]
[null,null,""]
[null,null,""]
[null,null,""]
[null,null,""]
[null,null,""]
[null,null,""]
[null,null,""]
[null,null,""]
[null,null,""]
[null,null,""]
[null,null,""]
[null,null,""]
[null,null,""]
[null,null,""]
[null,null,""]
[null,null,""]
[null,null,""]
[null,null,""]
[null,null,""]
[null,null,""]
[null,null,""]
[null,null,""]
[null,null,""]
[null,null,""]
[null,null,""]
[null,null,""]
[null,null,""]
[null,null,""]
[null,null,""]
[null,null,""]
[null,null,""]
[null,null,""]
[null,null,""]
[null,null,""]
[null,null,""]
[null,null,""]
[null,null,""]
[null,null,""]
[null,null,""]
[null,null,""]
[null,null,""]
[null,null,""]
[null,null,""]
[null,null,""]
[null,null,""]
[null,null,""]
[null,null,""]
[null,null,""]
[null,null,""]
[null,null,""]
[null,null,""]
[null,null,""]
[null,null,""]
[null,null,""]
[null,null,""]
[null,null,""]
[null,null,""]
[null,null,""]
[null,null,""]
[null,null,""]
[null,null,""]
[null,null,""]
[null,null,""]
[null,null,""]
[null,null,""]
[null,null,""]
[null,null,""]
[null,null,""]
[null,null,""]
[null,null,""]
[null,null,""]
[null,null,""]
[null,null,""]
[null,null,""]
[null,null,""]
[null,null,""]
[null,null,""]
[null,null,""]
[null,null,""]
[null,null,""]
[null,null,""]
[null,null,""]
[null,null,""]
[null,null,""]
[null,null,""]
[null,null,""]
[null,null,""]
[null,null,""]
[null,null,""]
[null,null,""]
[null,null,""]
[null,null,""]
[null,null,""]
[null,null,""]
[null,null,""]
[null,null,""]
[null,null,""]
[null,null,""]
[null,null,""]
[null,null,""]
[null,null,""]
[null,null,""]
[null,null,""]
[null,null,""]
[null,null,""]
[null,null,""]
[null,null,""]
[null,null,""]
[null,null,""]
[null,null,""]
[null,null,""]
[null,null,""]
[null,null,""]
[null,null,""]
[null,null,""]
[null,null,""]
[null,null,""]
[null,null,""]
[null,null,""]
[null,null,""]
[null,null,""]
[null,null,""]
[null,null,""]
[null,null,""]
[null,null,""]
[null,null,""]
[null,null,""]
[null,null,""]
[null,null,""]
[null,null,""]
[null,null,""]
[null,null,""]
[null,null,""]
[null,null,""]
[null,null,""]
[null,null,""]
[null,null,""]
[null,null,""]
[null,null,""]
[null,null,""]
[null,null,""]
[null,null,""]
[null,null,""]
[null,null,""]
[null,null,""]
[null,null,""]
[null,null,""]
[null,null,""]
[null,null,""]
[null,null,""]
[null,null,""]
[null,null,""]
[null,null,""]
[null,null,""]
[null,null,""]
[null,null,""]
[null,null,""]
[null,null,""]
[null,null,""]
[null,null,""]
[null,null,""]
[null,null,""]
[null,null,""]
[null,null,""]
[null,null,""]
[null,null,""]
[null,null,""]
[null,null,""]
[null,null,""]
[null,null,""]
[null,null,""]
[null,null,""]
[null,null,""]
[null,null,""]
[null,null,""]
[null,null,""]
[null,null,""]
[null,null,""]
[null,null,""]
[null,null,""]
[null,null,""]
[null,null,""]
[null,null,""]
[null,null,""]
[null,null,""]
[null,null,""]
[null,null,""]
[null,null,""]
[null,null,""]
[null,null,""]
[null,null,""]
[null,null,""]
[null,null,""]
[null,null,""]
[null,null,""]
[null,null,""]
[null,null,""]
[null,null,""]
[null,null,""]
[null,null,""]
[null,null,""]
[null,null,""]
[null,null,""]
[null,null,""]
[null,null,""]
[null,null,""]
[null,null,""]
[null,null,""]
[null,null,""]
[null,null,""]
[null,null,""]
[null,null,""]
[null,null,""]
[null,null,""]
[null,null,""]
[null,null,""]
[null,null,""]
[null,null,""]
[null,null,""]
[null,null,""]
[null,null,""]
[null,null,""]
[null,null,""]
[null,null,""]
[null,null,""]
[null,null,""]
[null,null,""]
[null,null,""]
[null,null,""]
[null,null,""]
[null,null,""]
[null,null,""]
[null,null,""]
[null,null,""]
[null,null,""]
[null,null,""]
[null,null,""]
[null,null,""]
[null,null,""]
[null,null,""]
[null,null,""]
[null,null,""]
[null,null,""]
[null,null,""]
[null,null,""]
[null,null,""]
[null,null,""]
[null,null,""]
[null,null,""]
[null,null,""]
[null,null,""]
[null,null,""]
[null,null,""]
[null,null,""]
[null,null,""]
[null,null,""]
[null,null,""]
[null,null,""]
[null,null,""]
[null,null,""]
[null,null,""]
[null,null,""]
[null,null,""]
[null,null,""]
[null,null,""]
[null,null,""]
[null,null,""]
[null,null,""]
[null,null,""]
[null,null,""]
[null,null,""]
[null,null,""]
[null,null,""]
[null,null,""]
[null,null,""]
[null,null,""]
[null,null,""]
[null,null,""]
[null,null,""]
[null,null,""]
[null,null,""]
[null,null,""]
[null,null,""]
[null,null,""]
[null,null,""]
[null,null,""]
[null,null,""]
[null,null,""]
[null,null,""]
[null,null,""]
[null,null,""]
[null,null,""]
[null,null,""]
[null,null,""]
[null,null,""]
[null,null,""]
[null,null,""]
[null,null,""]
[null,null,""]
[null,null,""]
[null,null,""]
[null,null,""]
[null,null,""]
[null,null,""]
[null,null,""]
[null,null,""]
[null,null,""]
[null,null,""]
[null,null,""]
[null,null,""]
[null,null,""]
[null,null,""]
[null,null,""]
[null,null,""]
[null,null,""]
[null,null,""]
[null,null,""]
[null,null,""]
[null,null,""]
[null,null,""]
[null,null,""]
[null,null,""]
[null,null,""]
[null,null,""]
[null,null,""]
[null,null,""]
[null,null,""]
[null,null,""]
[null,null,""]
[null,null,""]
[null,null,""]
[null,null,""]
[null,null,""]
[null,null,""]
[null,null,""]
[null,null,""]
[null,null,""]
[null,null,""]
[null,null,""]
[null,null,""]
[null,null,""]
[null,null,""]
[null,null,""]
[null,null,""]
[null,null,""]
[null,null,""]
[null,null,""]
[null,null,""]
[null,null,""]
[null,null,""]
[null,null,""]
[null,null,""]
[null,null,""]
[null,null,""]
[null,null,""]
[null,null,""]
[null,null,""]
[null,null,""]
[null,null,""]
[null,null,""]
[null,null,""]
[null,null,""]
[null,null,""]
[null,null,""]
[null,null,""]
[null,null,""]
[null,null,""]
[null,null,""]
[null,null,""]
[null,null,""]
[null,null,""]
[null,null,""]
[null,null,""]
[null,null,""]
[null,null,""]
[null,null,""]
[null,null,""]
[null,null,""]
[null,null,""]
[null,null,""]
[null,null,""]
[null,null,""]
[null,null,""]
[null,null,""]
[null,null,""]
[null,null,""]
[null,null,""]
[null,null,""]
[null,null,""]
[null,null,""]
[null,null,""]
[null,null,""]
[null,null,""]
[null,null,""]
[null,null,""]
[null,null,""]
[null,null,""]
[null,null,""]
[null,null,""]
[null,null,""]
[null,null,""]
[null,null,""]
[null,null,""]
[null,null,""]
[null,null,""]
[null,null,""]
[null,null,""]
[null,null,""]
[null,null,""]
[null,null,""]
[null,null,""]
[null,null,""]
[null,null,""]
[null,null,""]
[null,null,""]
[null,null,""]
[null,null,""]
[null,null,""]
[null,null,""]
[null,null,""]
[null,null,""]
[null,null,""]
[null,null,""]
[null,null,""]
[null,null,""]
[null,null,""]
[null,null,""]
[null,null,""]
[null,null,""]
[null,null,""]
[null,null,""]
[null,null,""]
[null,null,""]
[null,null,""]
[null,null,""]
[null,null,""]
[null,null,""]
[null,null,""]
[null,null,""]
[null,null,""]
[null,null,""]
[null,null,""]
[null,null,""]
[null,null,""]
[null,null,""]
[null,null,""]
[null,null,""]
[null,null,""]
[null,null,""]
[null,null,""]
[null,null,""]
[null,null,""]
[null,null,""]
[null,null,""]
[null,null,""]
[null,null,""]
[null,null,""]
[null,null,""]
[null,null,""]
[null,null,""]
[null,null,""]
[null,null,""]
[null,null,""]
[null,null,""]
[null,null,""]
[null,null,""]
[null,null,""]
[null,null,""]
[null,null,""]
[null,null,""]
[null,null,""]
[null,null,""]
[null,null,""]
[null,null,""]
[null,null,""]
[null,null,""]
[null,null,""]
[null,null,""]
[null,null,""]
[null,null,""]
[null,null,""]
[null,null,""]
[null,null,""]
[null,null,""]
[null,null,""]
[null,null,""]
[null,null,""]
[null,null,""]
[null,null,""]
[null,null,""]
[null,null,""]
[null,null,""]
[null,null,""]
[null,null,""]
[null,null,""]
[null,null,""]
[null,null,""]
[null,null,""]
[null,null,""]
[null,null,""]
[null,null,""]
[null,null,""]
[null,null,""]
[null,null,""]
[null,null,""]
[null,null,""]
[null,null,""]
[null,null,""]
[null,null,""]
[null,null,""]
[null,null,""]
[null,null,""]
[null,null,""]
[null,null,""]
[null,null,""]
[null,null,""]
[null,null,""]
[null,null,""]
[null,null,""]
[null,null,""]
[null,null,""]
[null,null,""]
[null,null,""]
[null,null,""]
[null,null,""]
[null,null,""]
[null,null,""]
[null,null,""]
[null,null,""]
[null,null,""]
[null,null,""]
[null,null,""]
[null,null,""]
[null,null,""]
[null,null,""]
[null,null,""]
[null,null,""]
[null,null,""]
[null,null,""]
[null,null,""]
[null,null,""]
[null,null,""]
[null,null,""]
[null,null,""]
[null,null,""]
[null,null,""]
[null,null,""]
[null,null,""]
[null,null,""]
[null,null,""]
[null,null,""]
[null,null,""]
[null,null,""]
[null,null,""]
[null,null,""]
[null,null,""]
[null,null,""]
[null,null,""]
[null,null,""]
[null,null,""]
[null,null,""]
[null,null,""]
[null,null,""]
[null,null,""]
[null,null,""]
[null,null,""]
[null,null,""]
[null,null,""]
[null,null,""]
[null,null,""]
[null,null,""]
[null,null,""]
[null,null,""]
[null,null,""]
[null,null,""]
[null,null,""]
[null,null,""]
[null,null,""]
[null,null,""]
[null,null,""]
[null,null,""]
[null,null,""]
[null,null,""]
[null,null,""]
[null,null,""]
[null,null,""]
[null,null,""]
[null,null,""]
[null,null,""]
[null,null,""]
[null,null,""]
[null,null,""]
[null,null,""]
[null,null,""]
[null,null,""]
[null,null,""]
[null,null,""]
[null,null,""]
[null,null,""]
[null,null,""]
[null,null,""]
[null,null,""]
[null,null,""]
[null,null,""]
[null,null,""]
[null,null,""]
[null,null,""]
[null,null,""]
[null,null,""]
[null,null,""]
[null,null,""]
[null,null,""]
[null,null,""]
[null,null,""]
[null,null,""]
[null,null,""]
[null,null,""]
[null,null,""]
[null,null,""]
[null,null,""]
[null,null,""]
[null,null,""]
[null,null,""]
[null,null,""]
[null,null,""]
[null,null,""]
[null,null,""]
[null,null,""]
[null,null,""]
[null,null,""]
[null,null,""]
[null,null,""]
[null,null,""]
[null,null,""]
[null,null,""]
[null,null,""]
[null,null,""]
[null,null,""]
[null,null,""]
[null,null,""]
[null,null,""]
[null,null,""]
[null,null,""]
[null,null,""]
[null,null,""]
[null,null,""]
[null,null,""]
[null,null,""]
[null,null,""]
[null,null,""]
[null,null,""]
[null,null,""]
[null,null,""]
[null,null,""]
[null,null,""]
[null,null,""]
[null,null,""]
[null,null,""]
[null,null,""]
[null,null,""]
[null,null,""]
[null,null,""]
[null,null,""]
[null,null,""]
[null,null,""]
[null,null,""]
[null,null,""]
[null,null,""]
[null,null,""]
[null,null,""]
[null,null,""]
[null,null,""]
[null,null,""]
[null,null,""]
[null,null,""]
[null,null,""]
[null,null,""]
[null,null,""]
[null,null,""]
[null,null,""]
[null,null,""]
[null,null,""]
[null,null,""]
[null,null,""]
[null,null,""]
[null,null,""]
[null,null,""]
[null,null,""]
[null,null,""]
[null,null,""]
[null,null,""]
[null,null,""]
[null,null,""]
[null,null,""]
[null,null,""]
[null,null,""]
[null,null,""]
[null,null,""]
[null,null,""]
[null,null,""]
[null,null,""]
[null,null,""]
[null,null,""]
[null,null,""]
[null,null,""]
[null,null,""]
[null,null,""]
[null,null,""]
[null,null,""]
[null,null,""]
[null,null,""]
[null,null,""]
[null,null,""]
[null,null,""]
[null,null,""]
[null,null,""]
[null,null,""]
[null,null,""]
[null,null,""]
[null,null,""]
[null,null,""]
[null,null,""]
[null,null,""]
[null,null,""]
[null,null,""]
[null,null,""]
[null,null,""]
[null,null,""]
[null,null,""]
[null,null,""]
[null,null,""]
[null,null,""]
[null,null,""]
[null,null,""]
[null,null,""]
[null,null,""]
[null,null,""]
[null,null,""]
[null,null,""]
[null,null,""]
[null,null,""]
[null,null,""]
[null,null,""]
[null,null,""]
[null,null,""]
[null,null,""]
[null,null,""]
[null,null,""]
[null,null,""]
[null,null,""]
[null,null,""]
[null,null,""]
[null,null,""]
[null,null,""]
[null,null,""]
[null,null,""]
[null,null,""]
[null,null,""]
[null,null,""]
[null,null,""]
[null,null,""]
[null,null,""]
[null,null,""]
[null,null,""]
[null,null,""]
[null,null,""]
[null,null,""]
[null,null,""]
[null,null,""]
[null,null,""]
[null,null,""]
[null,null,""]
[null,null,""]
[null,null,""]
[null,null,""]
[null,null,""]
[null,null,""]
[null,null,""]
[null,null,""]
[null,null,""]
[null,null,""]
[null,null,""]
[null,null,""]
[null,null,""]
[null,null,""]
[null,null,""]
[null,null,""]
[null,null,""]
[null,null,""]
[null,null,""]
[null,null,""]
[null,null,""]
[null,null,""]
[null,null,""]
[null,null,""]
[null,null,""]
[null,null,""]
[null,null,""]
[null,null,""]
[null,null,""]
[null,null,""]
[null,null,""]
[null,null,""]
[null,null,""]
[null,null,""]
[null,null,""]
[null,null,""]
[null,null,""]
[null,null,""]
[null,null,""]
[null,null,""]
[null,null,""]
[null,null,""]
[null,null,""]
[null,null,""]
[null,null,""]
[null,null,""]
[null,null,""]
[null,null,""]
[null,null,""]
[null,null,""]
[null,null,""]
[null,null,""]
[null,null,""]
[null,null,""]
[null,null,""]
[null,null,""]
[null,null,""]
[null,null,""]
[null,null,""]
[null,null,""]
[null,null,""]
[null,null,""]
[null,null,""]
[null,null,""]
[null,null,""]
[null,null,""]
[null,null,""]
[null,null,""]
[null,null,""]
[null,null,""]
[null,null,""]
[null,null,""]
[null,null,""]
[null,null,""]
[null,null,""]
[null,null,""]
[null,null,""]
[null,null,""]
[null,null,""]
[null,null,""]
[null,null,""]
[null,null,""]
[null,null,""]
[null,null,""]
[null,null,""]
[null,null,""]
[null,null,""]
[null,null,""]
[null,null,""]
[null,null,""]
[null,null,""]
[null,null,""]
[null,null,""]
[null,null,""]
[null,null,""]
[null,null,""]
[null,null,""]
[null,null,""]
[null,null,""]
[null,null,""]
[null,null,""]
[null,null,""]
[null,null,""]
[null,null,""]
[null,null,""]
[null,null,""]
[null,null,""]
[null,null,""]
[null,null,""]
[null,null,""]
[null,null,""]
[null,null,""]
[null,null,""]
[null,null,""]
[null,null,""]
[null,null,""]
[null,null,""]
[null,null,""]
[null,null,""]
[null,null,""]
[null,null,""]
[null,null,""]
[null,null,""]
[null,null,""]
[null,null,""]
[null,null,""]
[null,null,""]
[null,null,""]
[null,null,""]
[null,null,""]
[null,null,""]
[null,null,""]
[null,null,""]
[null,null,""]
[null,null,""]
[null,null,""]
[null,null,""]
[null,null,""]
[null,null,""]
[null,null,""]
[null,null,""]
[null,null,""]
[null,null,""]
[null,null,""]
[null,null,""]
[null,null,""]
[null,null,""]
[null,null,""]
[null,null,""]
[null,null,""]
[null,null,""]
[null,null,""]
[null,null,""]
[null,null,""]
[null,null,""]
[null,null,""]
[null,null,""]
[null,null,""]
[null,null,""]
[null,null,""]
[null,null,""]
[null,null,""]
[null,null,""]
[null,null,""]
[null,null,""]
[null,null,""]
[null,null,""]
[null,null,""]
[null,null,""]
[null,null,""]
[null,null,""]
[null,null,""]
[null,null,""]
[null,null,""]
[null,null,""]
[null,null,""]
[null,null,""]
[null,null,""]
[null,null,""]
[null,null,""]
[null,null,""]
[null,null,""]
[null,null,""]
[null,null,""]
[null,null,""]
[null,null,""]
[null,null,""]
[null,null,""]
[null,null,""]
[null,null,""]
[null,null,""]
[null,null,""]
[null,null,""]
[null,null,""]
[null,null,""]
[null,null,""]
[null,null,""]
[null,null,""]
[null,null,""]
[null,null,""]
[null,null,""]
[null,null,""]
[null,null,""]
[null,null,""]
[null,null,""]
[null,null,""]
[null,null,""]
[null,null,""]
[null,null,""]
[null,null,""]
[null,null,""]
[null,null,""]
[null,null,""]
[null,null,""]
[null,null,""]
[null,null,""]
[null,null,""]
[null,null,""]
[null,null,""]
[null,null,""]
[null,null,""]
[null,null,""]
[null,null,""]
[null,null,""]
[null,null,""]
[null,null,""]
[null,null,""]
[null,null,""]
[null,null,""]
[null,null,""]
[null,null,""]
[null,null,""]
[null,null,""]
[null,null,""]
[null,null,""]
[null,null,""]
[null,null,""]
[null,null,""]
[null,null,""]
[null,null,""]
[null,null,""]
[null,null,""]
[null,null,""]
[null,null,""]
[null,null,""]
[null,null,""]
[null,null,""]
[null,null,""]
[null,null,""]
[null,null,""]
[null,null,""]
[null,null,""]
[null,null,""]
[null,null,""]
[null,null,""]
[null,null,""]
[null,null,""]
[null,null,""]
[null,null,""]
[null,null,""]
[null,null,""]
[null,null,""]
[null,null,""]
[null,null,""]
[null,null,""]
[null,null,""]
[null,null,""]
[null,null,""]
[null,null,""]
[null,null,""]
[null,null,""]
[null,null,""]
[null,null,""]
[null,null,""]
[null,null,""]
[null,null,""]
[null,null,""]
[null,null,""]
[null,null,""]
[null,null,""]
[null,null,""]
[null,null,""]
[null,null,""]
[null,null,""]
[null,null,""]
[null,null,""]
[null,null,""]
[null,null,""]
[null,null,""]
[null,null,""]
[null,null,""]
[null,null,""]
[null,null,""]
[null,null,""]
[null,null,""]
[null,null,""]
[null,null,""]
[null,null,""]
[null,null,""]
[null,null,""]
[null,null,""]
[null,null,""]
[null,null,""]
[null,null,""]
[null,null,""]
[null,null,""]
[null,null,""]
[null,null,""]
[null,null,""]
[null,null,""]
[null,null,""]
[null,null,""]
[null,null,""]
[null,null,""]
[null,null,""]
[null,null,""]
[null,null,""]
[null,null,""]
[null,null,""]
[null,null,""]
[null,null,""]
[null,null,""]
[null,null,""]
[null,null,""]
[null,null,""]
[null,null,""]
[null,null,""]
[null,null,""]
[null,null,""]
[null,null,""]
[null,null,""]
[null,null,""]
[null,null,""]
[null,null,""]
[null,null,""]
[null,null,""]
[null,null,""]
[null,null,""]
[null,null,""]
[null,null,""]
[null,null,""]
[null,null,""]
[null,null,""]
[null,null,""]
[null,null,""]
[null,null,""]
[null,null,""]
[null,null,""]
[null,null,""]
[null,null,""]
[null,null,""]
[null,null,""]
[null,null,""]
[null,null,""]
[null,null,""]
[null,null,""]
[null,null,""]
[null,null,""]
[null,null,""]
[null,null,""]
[null,null,""]
[null,null,""]
[null,null,""]
[null,null,""]
[null,null,""]
[null,null,""]
[null,null,""]
[null,null,""]
[null,null,""]
[null,null,""]
[null,null,""]
[null,null,""]
[null,null,""]
[null,null,""]
[null,null,""]
[null,null,""]
[null,null,""]
[null,null,""]
[null,null,""]
[null,null,""]
[null,null,""]
[null,null,""]
[null,null,""]
[null,null,""]
[null,null,""]
[null,null,""]
[null,null,""]
[null,null,""]
[null,null,""]
[null,null,""]
[null,null,""]
[null,null,""]
[null,null,""]
[null,null,""]